Workbook

Sheet Model update
A3: Tariff Approval Template for | B3: Aust. Gas Networks (Vic & Albury)
A5: Calendar year commencing | B5: 2019
A7: t | B7: =B5 -> 2019
A8: t-1 | B8: =B7-1 -> 2018
A9: t-2 | B9: 2017
A10: t-3 | B10: 2016
A13: Please fill in yellow highlighted cells where appropriate
A15: CPI
A17: CPI Index June 2016 | B17: 108.6
A18: CPI Index June 2017 | B18: 110.7
A19: CPI Index June 2018 | B19: 113
A20: CPI Index June 2019
A21: CPI Index June 2020
A22: CPI Index June 2021
A25: ="CPI Index June " &$B$10 -> CPI Index June 2016 | B25: =VLOOKUP(A25,A$17:B$22,2,FALSE) -> 108.6
A26: ="CPI Index June " &$B$9 -> CPI Index June 2017 | B26: =VLOOKUP(A26,A$17:B$22,2,FALSE) -> 110.7
A27: ="CPI Index June " &$B$8 -> CPI Index June 2018 | B27: =VLOOKUP(A27,A$17:B$22,2,FALSE) -> 113
A29: ="CPI " &$B$8 -> CPI 2018 | B29: =B26/B25-1 -> 0.01933701657
A30: ="CPI " &$B$5 -> CPI 2019 | B30: =B27/B26-1 -> 0.02077687444
A33: ="Xt for "&B$5 -> Xt for 2019
A34: 2019 | B34: -0.0129320032
A35: 2020 | B35: -0.0135
A36: 2021 | B36: -0.0135
A37: 2022 | B37: -0.0135
A40: ="Xt for "&B$5 -> Xt for 2019 | B40: =VLOOKUP(B5,A34:B38,2,FALSE) -> -0.0129320032
A43: Pass Through Amounts : PT (t)
A44: 2019 | B44: 0
A45: 2020 | B45: 0
A46: 2021 | B46: 0
A47: 2022 | B47: 0
A50: ="Pass Through Amount for "&B$5 -> Pass Through Amount for 2019 | B50: =VLOOKUP(B5,A44:B48,2,FALSE) -> 0
A51: The Pass Through Amount is to include an amount that reflects the time value of money between incurring the costs and recovering the costs
A52: and excludes any amounts already passed through in reference tariffs.
A55: Pre-tax WACC for distribution tariffs
A58: Pretax WACCD | B58: 0.0384269241

Sheet Prop2019DistTar
B1: ="Tariff Approval - "&'Model update'!B3 -> Tariff Approval - Aust. Gas Networks (Vic & Albury)
B3: ="PROPOSED "&'Model update'!$B$5&" DISTRIBUTION TARIFFS" -> PROPOSED 2019 DISTRIBUTION TARIFFS
B5: Proposed tariff name | C5: Existing tariff name | D5: Prop 2019 Tariff | E5: Exist 2018 Tariff | F5: Actual 2017 Volumes | G5: Prop Tar Revenue | H5: Exist Tar Revenue
B6: Tariff V - AGN Central - Residential | C6: Tariff V - AGN Central - Residential
B8: Fixed Charge | C8: Fixed Charge | D8: 0.1901 | E8: 0.1862 | F8: 194438385 | G8: =D8*$F8 -> 36962736.99 | H8: =E8*$F8 -> 36204427.29
B9: GJ 0 - 0.0274 | C9: GJ 0 - 0.0274 | D9: 11.4676 | E9: 10.7244 | F9: 4704142.847 | G9: =D9*$F9 -> 53945228.52 | H9: =E9*$F9 -> 50449109.55
B10: GJ 0.0274 - 0.0493 | C10: GJ 0.0274 - 0.0493 | D10: 6.7306 | E10: 6.5936 | F10: 3019087.721 | G10: =D10*$F10 -> 20320271.81 | H10: =E10*$F10 -> 19906656.79
B11: GJ > 0.0493 | C11: GJ > 0.0493 | D11: 3.6949 | E11: 3.6197 | F11: 18939948.23 | G11: 69981214.73 | H11: 68556930.62
B12: Tariff V - AGN Central - Non Residential | C12: Tariff V - AGN Central - Non Residential | F12: 26663178.8
B14: Fixed Charge | C14: Fixed Charge | D14: 0.1901 | E14: 0.1862 | F14: 7272382 | G14: =D14*$F14 -> 1382479.818 | H14: =E14*$F14 -> 1354117.528
B15: GJ 0 - 0.05 | C15: GJ 0 - 0.05 | D15: 8.2633 | E15: 7.7278 | F15: 269661.6763 | G15: =D15*$F15 -> 2228295.33 | H15: 2083891.502
B16: GJ 0.05 - 0.55 | C16: GJ 0.05 - 0.55 | D16: 3.8769 | E16: 3.798 | F16: 1428561.654 | G16: 5538390.675 | H16: 5425677.16
B17: GJ 0.55 - 1.37 | C17: GJ 0.55 - 1.37 | D17: 2.8973 | E17: 2.8383 | F17: 1117989.393 | G17: 3239150.668 | H17: 3173189.294
B18: GJ > 1.37 | C18: GJ > 1.37 | D18: 1.1749 | E18: 1.151 | F18: 4069892.548 | G18: 4781716.755 | H18: 4684446.323
B19: Tariff V - AGN North - Residential | C19: Tariff V - AGN North - Residential | F19: 6886105.271
B21: Fixed Charge | C21: Fixed Charge | D21: 0.1901 | E21: 0.1862 | F21: 27518961 | G21: =D21*$F21 -> 5231354.486 | H21: =E21*$F21 -> 5124030.538
B22: GJ 0 - 0.0274 | C22: GJ 0 - 0.0274 | D22: 10.0897 | E22: 9.4358 | F22: 639501.847 | G22: =D22*$F22 -> 6452381.785 | H22: 6034211.527
B23: GJ 0.0274 - 0.0493 | C23: GJ 0.0274 - 0.0493 | D23: 6.0291 | E23: 5.9064 | F23: 389854.0996 | G23: 2350469.352 | H23: 2302634.254
B24: GJ > 0.0493 | C24: GJ > 0.0493 | D24: 3.3102 | E24: 3.2428 | F24: 2641770.65 | G24: 8744789.204 | H24: 8566733.862
B25: Tariff V - AGN North - Non Residential | C25: Tariff V - AGN North - Non Residential | F25: 3671126.596
B27: Fixed Charge | C27: Fixed Charge | D27: 0.1901 | E27: 0.1862 | F27: 1187017 | G27: =D27*$F27 -> 225651.9317 | H27: =E27*$F27 -> 221022.5654
B28: GJ 0 - 0.05 | C28: GJ 0 - 0.05 | D28: 7.4122 | E28: 6.9318 | F28: 37831.8149 | G28: =D28*$F28 -> 280416.9784 | H28: 262242.5745
B29: GJ 0.05 - 0.55 | C29: GJ 0.05 - 0.55 | D29: 3.5038 | E29: 3.4325 | F29: 184497.1598 | G29: 646441.1486 | H29: 633286.5011
B30: GJ 0.55 - 1.37 | C30: GJ 0.55 - 1.37 | D30: 2.6183 | E30: 2.565 | F30: 125529.1123 | G30: 328672.8748 | H30: 321982.1731
B31: GJ > 1.37 | C31: GJ > 1.37 | D31: 1.0617 | E31: 1.0401 | F31: 473113.7223 | G31: 502304.839 | H31: 492085.5826
B32: Tariff V - Murray Valley - Residential | C32: Tariff V - Murray Valley - Residential | F32: 820971.8094
B34: Fixed Charge | C34: Fixed Charge | D34: 0.2419 | E34: 0.237 | F34: 2846787 | G34: =D34*$F34 -> 688637.7753 | H34: =E34*$F34 -> 674688.519
B35: GJ 0 - 0.0274 | C35: GJ 0 - 0.0274 | D35: 8.7843 | E35: 8.215 | F35: 56332.21505 | G35: =D35*$F35 -> 494839.0767 | H35: 462769.1466
B36: GJ 0.0274 - 0.0493 | C36: GJ 0.0274 - 0.0493 | D36: 5.4247 | E36: 5.3143 | F36: 30747.31191 | G36: 166794.9429 | H36: 163400.4397
B37: GJ > 0.0493 | C37: GJ > 0.0493 | D37: 3.3934 | E37: 3.3243 | F37: 202036.3885 | G37: 685590.2806 | H37: 671629.5662
B38: Tariff V - Murray Valley - Non Residential | C38: Tariff V - Murray Valley - Non Residential | F38: 289115.9154
B40: Fixed Charge | C40: Fixed Charge | D40: 0.2419 | E40: 0.237 | F40: 125998 | G40: =D40*$F40 -> 30478.9162 | H40: =E40*$F40 -> 29861.526
B41: GJ 0 - 0.05 | C41: GJ 0 - 0.05 | D41: 6.6274 | E41: 6.1979 | F41: 4424.81024 | G41: =D41*$F41 -> 29324.98739 | H41: 27424.53139
B42: GJ 0.05 - 0.55 | C42: GJ 0.05 - 0.55 | D42: 3.8911 | E42: 3.8119 | F42: 20965.2222 | G42: 81577.77609 | H42: 79917.3305
B43: GJ 0.55 - 1.37 | C43: GJ 0.55 - 1.37 | D43: 2.9096 | E43: 2.8504 | F43: 13536.13817 | G43: 39384.74763 | H43: 38583.40825
B44: GJ > 1.37 | C44: GJ > 1.37 | D44: 1.3224 | E44: 1.2955 | F44: 31825.49375 | G44: 42086.03294 | H44: 41229.92716
B45: Tariff V - Bairnsdale - Residential | C45: Tariff V - Bairnsdale - Residential | F45: 70751.66437
B47: Fixed Charge | C47: Fixed Charge | D47: 0.3128 | E47: 0.3064 | F47: 1493889 | G47: =D47*$F47 -> 467288.4792 | H47: =E47*$F47 -> 457727.5896
B48: GJ 0 - 0.0274 | C48: GJ 0 - 0.0274 | D48: 18.7228 | E48: 17.5094 | F48: 29986.52751 | G48: =D48*$F48 -> 561431.7573 | H48: =E48*$F48 -> 525046.1048
B49: GJ 0.0274 - 0.0493 | C49: GJ 0.0274 - 0.0493 | D49: 11.1163 | E49: 10.89 | F49: 15331.24692 | G49: 170426.7401 | H49: 166957.2789
B50: GJ > 0.0493 | C50: GJ > 0.0493 | D50: 6.1027 | E50: 5.9785 | F50: 72694.09364 | G50: 443630.2453 | H50: 434601.6389
B51: Tariff V - Bairnsdale - Non Residential | C51: Tariff V - Bairnsdale - Non Residential | F51: 118011.8681
B53: Fixed Charge | C53: Fixed Charge | D53: 0.3128 | E53: 0.3064 | F53: 39321 | G53: =D53*$F53 -> 12299.6088 | H53: =E53*$F53 -> 12047.9544
B54: GJ 0 - 0.05 | C54: GJ 0 - 0.05 | D54: 13.5881 | E54: 12.7075 | F54: 1614.237631 | G54: =D54*$F54 -> 21934.42235 | H54: =E54*$F54 -> 20512.92469
B55: GJ 0.05 - 0.55 | C55: GJ 0.05 - 0.55 | D55: 6.5851 | E55: 6.4511 | F55: 12155.84931 | G55: 80047.48331 | H55: 78418.5995
B56: GJ 0.55 - 1.37 | C56: GJ 0.55 - 1.37 | D56: 4.9194 | E56: 4.8193 | F56: 10095.52943 | G56: 49663.94747 | H56: 48653.38498
B57: GJ > 1.37 | C57: GJ > 1.37 | D57: 1.9949 | E57: 1.9543 | F57: 45489.22024 | G57: 90746.44546 | H57: 88899.58312
F58: 69354.83662
B59: Tariff D - AGN Central | C59: Tariff D - AGN Central
B60: 0 - 10 | C60: 0 - 10 | D60: 1429.5715 | E60: 1381.8195 | F60: 1467.4217 | G60: =D60*$F60 -> 2097784.241 | H60: 2027711.92
B61: 10 - 50 | C61: 10 - 50 | D61: 873.9485 | E61: 844.756 | F61: 1341.3308 | G61: 1172254.041 | H61: 1133097.241
B62: > 50 | C62: > 50 | D62: 159.601 | E62: 154.2698 | F62: 1336.6182 | G62: 213325.6013 | H62: 206199.8224
B64: Tariff D - AGN North | C64: Tariff D - AGN North
B65: 0 - 10 | C65: 0 - 10 | D65: 1429.5715 | E65: 1381.8195 | F65: 437.0639 | G65: =D65*$F65 -> 624814.0951 | H65: 603943.4198
B66: 10 - 50 | C66: 10 - 50 | D66: 873.9485 | E66: 844.756 | F66: 625.7384 | G66: 546863.1361 | H66: 528596.2678
B67: > 50 | C67: > 50 | D67: 159.601 | E67: 154.2698 | F67: 505.4394 | G67: 80668.63368 | H67: 77974.03515
B69: Tariff D - Murray Valley | C69: Tariff D - Murray Valley
B70: 0 - 10 | C70: 0 - 10 | D70: 1666.3373 | E70: 1610.6766 | F70: 64.9203 | G70: =D70*$F70 -> 108179.1174 | H70: 104565.6081
B71: 10 - 50 | C71: 10 - 50 | D71: 1028.2353 | E71: 993.8891 | F71: 131.6219 | G71: 135338.2838 | H71: 130817.5717
B72: > 50 | C72: > 50 | D72: 175.1266 | E72: 169.2768 | F72: 126.3329 | G72: 22124.25125 | H72: 21385.22905
B74: Tariff D - Bairnsdale | C74: Tariff D - Bairnsdale
B75: 0 - 10 | C75: 0 - 10 | D75: 2364.7031 | E75: 2285.7148 | F75: 17.3197 | G75: =D75*$F75 -> 40955.94828 | H75: 39587.89462
B76: 10 - 50 | C76: 10 - 50 | D76: 1464.9434 | E76: 1416.0098 | F76: 3.9206 | G76: 5743.457094 | H76: 5551.608022
B77: > 50 | C77: > 50 | D77: 267.1724 | E77: 258.248 | F77: 0 | G77: 0 | H77: 0
B79: Tariff V - Albury - Residential | C79: Tariff V - Albury - Residential
B81: Fixed Charge | C81: Fixed Charge | D81: 0.2473 | E81: 0.2423 | F81: 7897336 | G81: =D81*$F81 -> 1953011.193 | H81: =E81*$F81 -> 1913524.513
B82: GJ 0 - 0.0274 | C82: GJ 0 - 0.0274 | D82: 8.3043 | E82: 7.7661 | F82: 181185.5413 | G82: 1504619.091 | H82: 1407105.032
B83: GJ 0.0274 - 0.0493 | C83: GJ 0.0274 - 0.0493 | D83: 5.0669 | E83: 4.9638 | F83: 109199.079 | G83: 553300.8134 | H83: 542042.3884
B84: GJ > 0.0493 | C84: GJ > 0.0493 | D84: 2.7824 | E84: 2.7258 | F84: 719170.6347 | G84: 2001020.374 | H84: 1960315.316
B85: Tariff V - Albury - Non Residential | C85: Tariff V - Albury - Non Residential | F85: 1009555.255
B87: Fixed Charge | C87: Fixed Charge | D87: 0.2473 | E87: 0.2423 | F87: 335600 | G87: =D87*$F87 -> 82993.88 | H87: 81315.88
B88: GJ 0 - 0.05 | C88: GJ 0 - 0.05 | D88: 6.2216 | E88: 5.8184 | F88: 11288.75184 | G88: 70234.09842 | H88: 65682.47368
B89: GJ 0.05 - 0.55 | C89: GJ 0.05 - 0.55 | D89: 3.0538 | E89: 2.9916 | F89: 58602.41863 | G89: 178960.066 | H89: 175314.9956
B90: GJ 0.55 - 1.37 | C90: GJ 0.55 - 1.37 | D90: 2.1728 | E90: 2.1286 | F90: 42526.96789 | G90: 92402.59583 | H90: 90522.90385
B91: GJ > 1.37 | C91: GJ > 1.37 | D91: 0.8808 | E91: 0.8629 | F91: 172784.3079 | G91: 152188.4184 | H91: 149095.5793
F92: 285202.4462
B93: Tariff D - Albury | C93: Tariff D - Albury
B94: 0 - 10 | C94: 0 - 10 | D94: 1229.4321 | E94: 1188.3653 | F94: 48.6084 | G94: =D94*$F94 -> 59760.72729 | H94: 57764.53585
B95: 10 - 50 | C95: 10 - 50 | D95: 763.5902 | E95: 738.084 | F95: 100.8453 | G95: =D95*$F95 -> 77004.4828 | H95: 74432.30241
B96: > 50 | C96: > 50 | D96: 184.5128 | E96: 178.3495 | F96: 187.7644 | G96: 34644.93518 | H96: 33487.68686
B99: Total Revenue | C99: Total Revenue | G99: =SUM(G8:G97) -> 239106343 | H99: =SUM(H8:H97) -> 231249079.3

Sheet 2019TarContForm
B1: ="Tariff Approval - "&'Model update'!B3 -> Tariff Approval - Aust. Gas Networks (Vic & Albury)
B3: ='Model update'!$B$5&" TARIFF CONTROL FORMULA" -> 2019 TARIFF CONTROL FORMULA
B6: CPI
B8: CPI Index June 2017 | C8: ='Model update'!B26 -> 110.7
B9: CPI Index June 2018 | C9: ='Model update'!B27 -> 113
B11: ="CPI "&'Model update'!$B$5 -> CPI 2019 | C11: =(C9/C8-1) -> 0.02077687444
B15: X factor
B17: ="X "&'Model update'!$B$5 -> X 2019 | C17: ='Model update'!B40 -> -0.0129320032
B20: Pass Through Factor (PT)
B22: pass through
B23: ="AP (t) "&'Model update'!$B$7 -> AP (t) 2019 | C23: ='Model update'!B50 -> 0
B25: Revenue
B26: ∑∑p(t-1)q(t-2) | C26: =C41 -> 231249079.3
B28: PT' (t-1) | C28: 0
B29: ="PT' "&'Model update'!$B$5 -> PT' 2019 | C29: =IF(C26="",0,(C23)/((1+C11)*(1-C17)*C26)) -> 0
B31: ="PTt "&'Model update'!$B$5 -> PTt 2019 | C31: =((1+C29)/(1+C28))-1 -> 0
B36: ='Model update'!$B$5&" Distribution price control" -> 2019 Distribution price control
B38: Average price movement allowed | C38: =(1+C11)*(1-C17)*(1+C31) -> 1.033977564
B40: Proposed distribution tariff revenue | C40: =IF(Prop2019DistTar!G99=0,"",Prop2019DistTar!G99) -> 239106343
B41: Existing distribution tariff revenue | C41: =IF(Prop2019DistTar!H99=0,"",Prop2019DistTar!H99) -> 231249079.3
B42: Average price movement | C42: =IF(C40="","",C40/C41) -> 1.033977492
B44: =IF(C40="","",IF(C38>=C42,"DISTRIBUTION PRICE CONTROL FORMULA COMPLIANT","DISTRIBUTION PRICE CONTROL FORMULA BREACHED")) -> DISTRIBUTION PRICE CONTROL FORMULA COMPLIANT

Sheet 2019RebalContForm
B1: ="Tariff Approval - "&'Model update'!B3 -> Tariff Approval - Aust. Gas Networks (Vic & Albury)
B3: ='Model update'!$B$5&" REBALANCING CONTROL FORMULA" -> 2019 REBALANCING CONTROL FORMULA
B6: Rebalancing control
B8: ="CPI "&'Model update'!$B$5 -> CPI 2019 | C8: ='2019TarContForm'!C11 -> 0.02077687444
B9: ="Y "&'Model update'!$B$5 -> Y 2019 | C9: 0.02
B10: ="PTt "&'Model update'!$B$5 -> PTt 2019 | C10: ='2019TarContForm'!C29 -> 0
B11: ="Xt "&'Model update'!$B$5 -> Xt 2019 | C11: ='2019TarContForm'!C17 -> -0.0129320032
B13: Rebalancing control | C13: =(1+C8)*(1+C9)*(1+C10)*(1-C11) -> 1.054657116
B17: Rebalancing control summary
C18: Existing | D18: Proposed | E18: Movement | F18: Assessment
B19: =B38 -> Tariff V - AGN Central - Residential | C19: =C59 -> 175117124.3 | D19: =C60 -> 181209452 | E19: =IF(C19=0,0,D19/C19) -> 1.034790017 | F19: =IF(E19=0,"",IF($C$13<=E19,"Breached","Compliant")) -> Compliant
B20: =B68 -> Tariff V - AGN North - Residential | C20: =C89 -> 22027610.18 | D20: =C90 -> 22778994.83 | E20: =IF(C20=0,0,D20/C20) -> 1.034111038 | F20: =IF(E20=0,"",IF($C$13<=E20,"Breached","Compliant")) -> Compliant
B21: =B98 -> Tariff V - Murray Valley - Residential | C21: =C119 -> 1972487.671 | D21: =C120 -> 2035862.075 | E21: 1.032129176 | F21: Compliant
B22: =B128 -> Tariff V - Bairnsdale - Residential | C22: =C149 -> 1584332.612 | D22: =C150 -> 1642777.222 | E22: 1.036889103 | F22: Compliant
B23: =B158 -> Tariff V - AGN Central - Non Residential | C23: =C179 -> 16721321.81 | D23: =C180 -> 17170033.25 | E23: 1.026834687 | F23: Compliant
B24: =B188 -> Tariff V - AGN North - Non Residential | C24: =C209 -> 1930619.397 | D24: =C210 -> 1983487.773 | E24: 1.027384152 | F24: =IF(E24=0,"",IF($C$13<=E24,"Breached","Compliant")) -> Compliant
B25: =B218 -> Tariff V - Murray Valley - Non Residential | C25: =C239 -> 217016.7233 | D25: =C240 -> 222852.4603 | E25: 1.026890725 | F25: Compliant
B26: =B248 -> Tariff V - Bairnsdale - Non Residential | C26: =C269 -> 248532.4467 | D26: =C270 -> 254691.9074 | E26: =IF(C26=0,0,D26/C26) -> 1.024783326 | F26: =IF(E26=0,"",IF($C$13<=E26,"Breached","Compliant")) -> Compliant
B27: =B278 -> Tariff D - AGN Central | C27: =C293 -> 3367008.983 | D27: =C294 -> 3483363.883 | E27: =IF(C27=0,0,D27/C27) -> 1.034557347 | F27: =IF(E27=0,"",IF($C$13<=E27,"Breached","Compliant")) -> Compliant
B28: =B302 -> Tariff D - AGN North | C28: =C317 -> 1210513.723 | D28: =C318 -> 1252345.865 | E28: 1.034557346 | F28: Compliant
B29: =B326 -> Tariff D - Murray Valley | C29: =C341 -> 256768.4089 | D29: =C342 -> 265641.6525 | E29: 1.034557381 | F29: Compliant
B30: =B350 -> Tariff D - Bairnsdale | C30: =C365 -> 45139.50264 | D30: =C366 -> 46699.40538 | E30: 1.034557375 | F30: Compliant
B31: =B374 -> Tariff V - Albury - Residential | C31: =C395 -> 5822987.249 | D31: =C396 -> 6011951.471 | E31: 1.032451423 | F31: Compliant
B32: =B404 -> Tariff V - Albury - Non Residential | C32: =C425 -> 561931.8324 | D32: =C426 -> 576779.0586 | E32: 1.026421757 | F32: Compliant
B33: =B434 -> Tariff D - Albury | C33: =C449 -> 165684.5251 | D33: =C450 -> 171410.1453 | E33: 1.034557362 | F33: Compliant
C34: =SUM(C19:C33) -> 231249079.3 | D34: =SUM(D19:D33) -> 239106343 | E34: 1.033977492
B38: =Prop2019DistTar!B6 -> Tariff V - AGN Central - Residential | C38: 1 | D38: 2 | E38: 3 | F38: 4 | G38: 5
C39: 1 | D39: 2 | E39: 3 | F39: 4 | G39: 5
B40: Distribution tariff | C40: Fixed | D40: Blk1 | E40: Blk2 | F40: Blk3
B42: ="Existing : "&Prop2019DistTar!C6 -> Existing : Tariff V - AGN Central - Residential | C42: =INDEX(Prop2019DistTar!$E$8:$E$11,C$39) -> 0.1862 | D42: =INDEX(Prop2019DistTar!$E$8:$E$11,D$39) -> 10.7244 | E42: =INDEX(Prop2019DistTar!$E$8:$E$11,E$39) -> 6.5936 | F42: =INDEX(Prop2019DistTar!$E$8:$E$11,F$39) -> 3.6197
B44: ="Proposed : "&B38 -> Proposed : Tariff V - AGN Central - Residential | C44: =INDEX(Prop2019DistTar!$D$8:$D$11,C$38) -> 0.1901 | D44: =INDEX(Prop2019DistTar!$D$8:$D$11,D$38) -> 11.4676 | E44: =INDEX(Prop2019DistTar!$D$8:$D$11,E$38) -> 6.7306 | F44: =INDEX(Prop2019DistTar!$D$8:$D$11,F$38) -> 3.6949
B46: Distribution volumes (actual) | C46: =C$40 -> Fixed | D46: =D$40 -> Blk1 | E46: Blk2 | F46: Blk3
B48: =B42 -> Existing : Tariff V - AGN Central - Residential | C48: =INDEX(Prop2019DistTar!$F$8:$F$11,C$13) -> 194438385 | D48: =INDEX(Prop2019DistTar!$F$8:$F$11,D$38) -> 4704142.847 | E48: =INDEX(Prop2019DistTar!$F$8:$F$11,E$38) -> 3019087.721 | F48: =INDEX(Prop2019DistTar!$F$8:$F$11,F$38) -> 18939948.23
B50: =B44 -> Proposed : Tariff V - AGN Central - Residential | C50: =INDEX(Prop2019DistTar!$F$8:$F$11,C$38) -> 194438385 | D50: =INDEX(Prop2019DistTar!$F$8:$F$11,D$38) -> 4704142.847 | E50: =INDEX(Prop2019DistTar!$F$8:$F$11,E$38) -> 3019087.721 | F50: =INDEX(Prop2019DistTar!$F$8:$F$11,F$38) -> 18939948.23
B52: Distribution revenue | C52: =C$40 -> Fixed | D52: Blk1 | E52: Blk2 | F52: Blk3
B54: =B48 -> Existing : Tariff V - AGN Central - Residential | C54: =INDEX(Prop2019DistTar!$H$8:$H$11,C$39) -> 36204427.29 | D54: =INDEX(Prop2019DistTar!$H$8:$H$11,D$39) -> 50449109.55 | E54: =INDEX(Prop2019DistTar!$H$8:$H$11,E$39) -> 19906656.79 | F54: =INDEX(Prop2019DistTar!$H$8:$H$11,F$39) -> 68556930.62
B56: =B50 -> Proposed : Tariff V - AGN Central - Residential | C56: =INDEX(Prop2019DistTar!$G$8:$G$11,C$38) -> 36962736.99 | D56: =INDEX(Prop2019DistTar!$G$8:$G$11,D$38) -> 53945228.52 | E56: =INDEX(Prop2019DistTar!$G$8:$G$11,E$38) -> 20320271.81 | F56: =INDEX(Prop2019DistTar!$G$8:$G$11,F$38) -> 69981214.73
B58: Revenue | C58: Total
B59: =B54 -> Existing : Tariff V - AGN Central - Residential | C59: =SUM(C54:F54) -> 175117124.3
B60: =B56 -> Proposed : Tariff V - AGN Central - Residential | C60: =SUM(C56:F56) -> 181209452
B62: Average price movement | C62: =IF(C60=0,"",C60/C59) -> 1.034790017
B64: =IF(C62="","",IF(C62<=$C$13,"REBALANCING CONTROL COMPLIANT","REBALANCING CONTROL BREACHED")) -> REBALANCING CONTROL COMPLIANT
B68: =Prop2019DistTar!B19 -> Tariff V - AGN North - Residential | C68: 1 | D68: 2 | E68: 3 | F68: 4
C69: 1 | D69: 2 | E69: 3 | F69: 4
B70: Distribution tariff | C70: Fixed | D70: Blk1 | E70: Blk2 | F70: Blk3
B72: ="Existing : "&Prop2019DistTar!C19 -> Existing : Tariff V - AGN North - Residential | C72: =INDEX(Prop2019DistTar!$E$21:$E$24,C$39) -> 0.1862 | D72: =INDEX(Prop2019DistTar!$E$21:$E$24,D$39) -> 9.4358 | E72: =INDEX(Prop2019DistTar!$E$21:$E$24,E$39) -> 5.9064 | F72: =INDEX(Prop2019DistTar!$E$21:$E$24,F$39) -> 3.2428
B74: ="Proposed : "&B68 -> Proposed : Tariff V - AGN North - Residential | C74: =INDEX(Prop2019DistTar!$D$21:$D$24,C$38) -> 0.1901 | D74: =INDEX(Prop2019DistTar!$D$21:$D$24,D$38) -> 10.0897 | E74: =INDEX(Prop2019DistTar!$D$21:$D$24,E$38) -> 6.0291 | F74: =INDEX(Prop2019DistTar!$D$21:$D$24,F$38) -> 3.3102
B76: Distribution volumes (actual) | C76: Fixed | D76: PkBlk1 | E76: PkBlk2 | F76: PkBlk3
B78: =B72 -> Existing : Tariff V - AGN North - Residential | C78: =INDEX(Prop2019DistTar!$F$21:$F$24,C$38) -> 27518961 | D78: =INDEX(Prop2019DistTar!$F$21:$F$24,D$38) -> 639501.847 | E78: =INDEX(Prop2019DistTar!$F$21:$F$24,E$38) -> 389854.0996 | F78: =INDEX(Prop2019DistTar!$F$21:$F$24,F$38) -> 2641770.65
B80: =B74 -> Proposed : Tariff V - AGN North - Residential | C80: =INDEX(Prop2019DistTar!$F$21:$F$24,C$38) -> 27518961 | D80: =INDEX(Prop2019DistTar!$F$21:$F$24,D$38) -> 639501.847 | E80: =INDEX(Prop2019DistTar!$F$21:$F$24,E$38) -> 389854.0996 | F80: =INDEX(Prop2019DistTar!$F$21:$F$24,F$38) -> 2641770.65
B82: Distribution revenue | C82: Fixed | D82: PkBlk1 | E82: PkBlk2 | F82: PkBlk3
B84: =B78 -> Existing : Tariff V - AGN North - Residential | C84: =INDEX(Prop2019DistTar!$H$21:$H$24,C$39) -> 5124030.538 | D84: =INDEX(Prop2019DistTar!$H$21:$H$24,D$39) -> 6034211.527 | E84: =INDEX(Prop2019DistTar!$H$21:$H$24,E$39) -> 2302634.254 | F84: =INDEX(Prop2019DistTar!$H$21:$H$24,F$39) -> 8566733.862
B86: =B80 -> Proposed : Tariff V - AGN North - Residential | C86: =INDEX(Prop2019DistTar!$G$21:$G$24,C$38) -> 5231354.486 | D86: =INDEX(Prop2019DistTar!$G$21:$G$24,D$38) -> 6452381.785 | E86: =INDEX(Prop2019DistTar!$G$21:$G$24,E$38) -> 2350469.352 | F86: =INDEX(Prop2019DistTar!$G$21:$G$24,F$38) -> 8744789.204
B88: Revenue | C88: Total
B89: =B84 -> Existing : Tariff V - AGN North - Residential | C89: =SUM(C84:F84) -> 22027610.18
B90: =B86 -> Proposed : Tariff V - AGN North - Residential | C90: =SUM(C86:F86) -> 22778994.83
B92: Average price movement | C92: =IF(C90=0,"",C90/C89) -> 1.034111038
B94: =IF(C92="","",IF(C92<=$C$13,"REBALANCING CONTROL COMPLIANT","REBALANCING CONTROL BREACHED")) -> REBALANCING CONTROL COMPLIANT
B98: =Prop2019DistTar!B32 -> Tariff V - Murray Valley - Residential | C98: 1 | D98: 2 | E98: 3 | F98: 4
C99: 1 | D99: 2 | E99: 3 | F99: 4
B100: Distribution tariff | C100: Fixed | D100: Blk1 | E100: Blk2 | F100: Blk3
B102: ="Existing : "&Prop2019DistTar!C32 -> Existing : Tariff V - Murray Valley - Residential | C102: =INDEX(Prop2019DistTar!$E$34:$E$37,C$39) -> 0.237 | D102: =INDEX(Prop2019DistTar!$E$34:$E$37,D$39) -> 8.215 | E102: =INDEX(Prop2019DistTar!$E$34:$E$37,E$39) -> 5.3143 | F102: =INDEX(Prop2019DistTar!$E$34:$E$37,F$39) -> 3.3243
B104: ="Proposed : "&B98 -> Proposed : Tariff V - Murray Valley - Residential | C104: =INDEX(Prop2019DistTar!$D$34:$D$37,C$38) -> 0.2419 | D104: =INDEX(Prop2019DistTar!$D$34:$D$37,D$38) -> 8.7843 | E104: =INDEX(Prop2019DistTar!$D$34:$D$37,E$38) -> 5.4247 | F104: =INDEX(Prop2019DistTar!$D$34:$D$37,F$38) -> 3.3934
B106: Distribution volumes (actual) | C106: Fixed | D106: PkBlk1 | E106: PkBlk2 | F106: PkBlk3
B108: =B102 -> Existing : Tariff V - Murray Valley - Residential | C108: =INDEX(Prop2019DistTar!$F$34:$F$37,C$38) -> 2846787 | D108: =INDEX(Prop2019DistTar!$F$34:$F$37,D$38) -> 56332.21505 | E108: =INDEX(Prop2019DistTar!$F$34:$F$37,E$38) -> 30747.31191 | F108: =INDEX(Prop2019DistTar!$F$34:$F$37,F$38) -> 202036.3885
B110: =B104 -> Proposed : Tariff V - Murray Valley - Residential | C110: =INDEX(Prop2019DistTar!$F$34:$F$37,C$38) -> 2846787 | D110: =INDEX(Prop2019DistTar!$F$34:$F$37,D$38) -> 56332.21505 | E110: =INDEX(Prop2019DistTar!$F$34:$F$37,E$38) -> 30747.31191 | F110: =INDEX(Prop2019DistTar!$F$34:$F$37,F$38) -> 202036.3885
B112: Distribution revenue | C112: Fixed | D112: PkBlk1 | E112: PkBlk2 | F112: PkBlk3
B114: =B108 -> Existing : Tariff V - Murray Valley - Residential | C114: =INDEX(Prop2019DistTar!$H$34:$H$37,C$39) -> 674688.519 | D114: =INDEX(Prop2019DistTar!$H$34:$H$37,D$39) -> 462769.1466 | E114: =INDEX(Prop2019DistTar!$H$34:$H$37,E$39) -> 163400.4397 | F114: =INDEX(Prop2019DistTar!$H$34:$H$37,F$39) -> 671629.5662
B116: =B110 -> Proposed : Tariff V - Murray Valley - Residential | C116: =INDEX(Prop2019DistTar!$G$34:$G$37,C$38) -> 688637.7753 | D116: =INDEX(Prop2019DistTar!$G$34:$G$37,D$38) -> 494839.0767 | E116: =INDEX(Prop2019DistTar!$G$34:$G$37,E$38) -> 166794.9429 | F116: =INDEX(Prop2019DistTar!$G$34:$G$37,F$38) -> 685590.2806
B118: Revenue | C118: Total
B119: =B114 -> Existing : Tariff V - Murray Valley - Residential | C119: =SUM(C114:F114) -> 1972487.671
B120: =B116 -> Proposed : Tariff V - Murray Valley - Residential | C120: =SUM(C116:F116) -> 2035862.075
B122: Average price movement | C122: =IF(C120=0,"",C120/C119) -> 1.032129176
B124: =IF(C122="","",IF(C122<=$C$13,"REBALANCING CONTROL COMPLIANT","REBALANCING CONTROL BREACHED")) -> REBALANCING CONTROL COMPLIANT
B128: =Prop2019DistTar!B45 -> Tariff V - Bairnsdale - Residential | C128: 1 | D128: 2 | E128: 3 | F128: 4
C129: 1 | D129: 2 | E129: 3 | F129: 4
B130: Distribution tariff | C130: Fixed | D130: Blk1 | E130: Blk2 | F130: Blk3
B132: ="Existing : "&Prop2019DistTar!C45 -> Existing : Tariff V - Bairnsdale - Residential | C132: =INDEX(Prop2019DistTar!$E$47:$E$50,C$39) -> 0.3064 | D132: =INDEX(Prop2019DistTar!$E$47:$E$50,D$39) -> 17.5094 | E132: =INDEX(Prop2019DistTar!$E$47:$E$50,E$39) -> 10.89 | F132: =INDEX(Prop2019DistTar!$E$47:$E$50,F$39) -> 5.9785
B134: ="Proposed : "&B128 -> Proposed : Tariff V - Bairnsdale - Residential | C134: =INDEX(Prop2019DistTar!$D$47:$D$50,C$38) -> 0.3128 | D134: =INDEX(Prop2019DistTar!$D$47:$D$50,D$38) -> 18.7228 | E134: =INDEX(Prop2019DistTar!$D$47:$D$50,E$38) -> 11.1163 | F134: =INDEX(Prop2019DistTar!$D$47:$D$50,F$38) -> 6.1027
B136: Distribution volumes (actual) | C136: Fixed | D136: PkBlk1 | E136: PkBlk2 | F136: PkBlk3
B138: =B132 -> Existing : Tariff V - Bairnsdale - Residential | C138: =INDEX(Prop2019DistTar!$F$47:$F$50,C$38) -> 1493889 | D138: =INDEX(Prop2019DistTar!$F$47:$F$50,D$38) -> 29986.52751 | E138: =INDEX(Prop2019DistTar!$F$47:$F$50,E$38) -> 15331.24692 | F138: =INDEX(Prop2019DistTar!$F$47:$F$50,F$38) -> 72694.09364
B140: =B134 -> Proposed : Tariff V - Bairnsdale - Residential | C140: =INDEX(Prop2019DistTar!$F$47:$F$50,C$38) -> 1493889 | D140: =INDEX(Prop2019DistTar!$F$47:$F$50,D$38) -> 29986.52751 | E140: =INDEX(Prop2019DistTar!$F$47:$F$50,E$38) -> 15331.24692 | F140: =INDEX(Prop2019DistTar!$F$47:$F$50,F$38) -> 72694.09364
B142: Distribution revenue | C142: Fixed | D142: PkBlk1 | E142: PkBlk2 | F142: PkBlk3
B144: =B138 -> Existing : Tariff V - Bairnsdale - Residential | C144: =INDEX(Prop2019DistTar!$H$47:$H$50,C$39) -> 457727.5896 | D144: =INDEX(Prop2019DistTar!$H$47:$H$50,D$39) -> 525046.1048 | E144: =INDEX(Prop2019DistTar!$H$47:$H$50,E$39) -> 166957.2789 | F144: =INDEX(Prop2019DistTar!$H$47:$H$50,F$39) -> 434601.6389
B146: =B140 -> Proposed : Tariff V - Bairnsdale - Residential | C146: =INDEX(Prop2019DistTar!$G$47:$G$50,C$38) -> 467288.4792 | D146: =INDEX(Prop2019DistTar!$G$47:$G$50,D$38) -> 561431.7573 | E146: =INDEX(Prop2019DistTar!$G$47:$G$50,E$38) -> 170426.7401 | F146: =INDEX(Prop2019DistTar!$G$47:$G$50,F$38) -> 443630.2453
B148: Revenue | C148: Total
B149: =B144 -> Existing : Tariff V - Bairnsdale - Residential | C149: =SUM(C144:F144) -> 1584332.612
B150: =B146 -> Proposed : Tariff V - Bairnsdale - Residential | C150: =SUM(C146:F146) -> 1642777.222
B152: Average price movement | C152: =IF(C150=0,"",C150/C149) -> 1.036889103
B154: =IF(C152="","",IF(C152<=$C$13,"REBALANCING CONTROL COMPLIANT","REBALANCING CONTROL BREACHED")) -> REBALANCING CONTROL COMPLIANT
B158: =Prop2019DistTar!B12 -> Tariff V - AGN Central - Non Residential | C158: 1 | D158: 2 | E158: 3 | F158: 4 | G158: 5
C159: 1 | D159: 2 | E159: 3 | F159: 4 | G159: 5
B160: Distribution tariff | C160: Fixed | D160: Blk1 | E160: Blk2 | F160: Blk3 | G160: Blk4
B162: ="Existing : "&Prop2019DistTar!C12 -> Existing : Tariff V - AGN Central - Non Residential | C162: =INDEX(Prop2019DistTar!$E$14:$E$18,C$39) -> 0.1862 | D162: =INDEX(Prop2019DistTar!$E$14:$E$18,D$39) -> 7.7278 | E162: =INDEX(Prop2019DistTar!$E$14:$E$18,E$39) -> 3.798 | F162: =INDEX(Prop2019DistTar!$E$14:$E$18,F$39) -> 2.8383 | G162: =INDEX(Prop2019DistTar!$E$14:$E$18,G$39) -> 1.151
B164: ="Proposed : "&B158 -> Proposed : Tariff V - AGN Central - Non Residential | C164: =INDEX(Prop2019DistTar!$D$14:$D$18,C$38) -> 0.1901 | D164: =INDEX(Prop2019DistTar!$D$14:$D$18,D$38) -> 8.2633 | E164: =INDEX(Prop2019DistTar!$D$14:$D$18,E$38) -> 3.8769 | F164: =INDEX(Prop2019DistTar!$D$14:$D$18,F$38) -> 2.8973 | G164: =INDEX(Prop2019DistTar!$D$14:$D$18,G$38) -> 1.1749
B166: Distribution volumes (actual) | C166: Fixed | D166: PkBlk1 | E166: PkBlk2 | F166: PkBlk3 | G166: PkBlk4
B168: =B162 -> Existing : Tariff V - AGN Central - Non Residential | C168: =INDEX(Prop2019DistTar!$F$14:$F$18,C$38) -> 7272382 | D168: =INDEX(Prop2019DistTar!$F$14:$F$18,D$38) -> 269661.6763 | E168: =INDEX(Prop2019DistTar!$F$14:$F$18,E$38) -> 1428561.654 | F168: =INDEX(Prop2019DistTar!$F$14:$F$18,F$38) -> 1117989.393 | G168: =INDEX(Prop2019DistTar!$F$14:$F$18,G$38) -> 4069892.548
B170: =B164 -> Proposed : Tariff V - AGN Central - Non Residential | C170: =INDEX(Prop2019DistTar!$F$14:$F$18,C$38) -> 7272382 | D170: =INDEX(Prop2019DistTar!$F$14:$F$18,D$38) -> 269661.6763 | E170: =INDEX(Prop2019DistTar!$F$14:$F$18,E$38) -> 1428561.654 | F170: =INDEX(Prop2019DistTar!$F$14:$F$18,F$38) -> 1117989.393 | G170: =INDEX(Prop2019DistTar!$F$14:$F$18,G$38) -> 4069892.548
B172: Distribution revenue | C172: Fixed | D172: PkBlk1 | E172: PkBlk2 | F172: PkBlk3 | G172: PkBlk4
B174: =B168 -> Existing : Tariff V - AGN Central - Non Residential | C174: =INDEX(Prop2019DistTar!$H$14:$H$18,C$39) -> 1354117.528 | D174: =INDEX(Prop2019DistTar!$H$14:$H$18,D$39) -> 2083891.502 | E174: =INDEX(Prop2019DistTar!$H$14:$H$18,E$39) -> 5425677.16 | F174: =INDEX(Prop2019DistTar!$H$14:$H$18,F$39) -> 3173189.294 | G174: =INDEX(Prop2019DistTar!$H$14:$H$18,G$39) -> 4684446.323
B176: =B170 -> Proposed : Tariff V - AGN Central - Non Residential | C176: =INDEX(Prop2019DistTar!$G$14:$G$18,C$38) -> 1382479.818 | D176: =INDEX(Prop2019DistTar!$G$14:$G$18,D$38) -> 2228295.33 | E176: =INDEX(Prop2019DistTar!$G$14:$G$18,E$38) -> 5538390.675 | F176: =INDEX(Prop2019DistTar!$G$14:$G$18,F$38) -> 3239150.668 | G176: =INDEX(Prop2019DistTar!$G$14:$G$18,G$38) -> 4781716.755
B178: Revenue | C178: Total
B179: =B174 -> Existing : Tariff V - AGN Central - Non Residential | C179: =SUM(C174:G174) -> 16721321.81
B180: =B176 -> Proposed : Tariff V - AGN Central - Non Residential | C180: =SUM(C176:G176) -> 17170033.25
B182: Average price movement | C182: =IF(C180=0,"",C180/C179) -> 1.026834687
B184: =IF(C182="","",IF(C182<=$C$13,"REBALANCING CONTROL COMPLIANT","REBALANCING CONTROL BREACHED")) -> REBALANCING CONTROL COMPLIANT
B188: =Prop2019DistTar!B25 -> Tariff V - AGN North - Non Residential | C188: 1 | D188: 2 | E188: 3 | F188: 4 | G188: 5
C189: 1 | D189: 2 | E189: 3 | F189: 4 | G189: 5
B190: Distribution tariff | C190: Fixed | D190: Blk1 | E190: Blk2 | F190: Blk3 | G190: Blk4
B192: ="Existing : "&Prop2019DistTar!C25 -> Existing : Tariff V - AGN North - Non Residential | C192: =INDEX(Prop2019DistTar!$E$27:$E$31,C$39) -> 0.1862 | D192: =INDEX(Prop2019DistTar!$E$27:$E$31,D$39) -> 6.9318 | E192: =INDEX(Prop2019DistTar!$E$27:$E$31,E$39) -> 3.4325 | F192: =INDEX(Prop2019DistTar!$E$27:$E$31,F$39) -> 2.565 | G192: =INDEX(Prop2019DistTar!$E$27:$E$31,G$39) -> 1.0401
B194: ="Proposed : "&B188 -> Proposed : Tariff V - AGN North - Non Residential | C194: =INDEX(Prop2019DistTar!$D$27:$D$31,C$38) -> 0.1901 | D194: =INDEX(Prop2019DistTar!$D$27:$D$31,D$38) -> 7.4122 | E194: =INDEX(Prop2019DistTar!$D$27:$D$31,E$38) -> 3.5038 | F194: =INDEX(Prop2019DistTar!$D$27:$D$31,F$38) -> 2.6183 | G194: =INDEX(Prop2019DistTar!$D$27:$D$31,G$38) -> 1.0617
B196: Distribution volumes (actual) | C196: Fixed | D196: PkBlk1 | E196: PkBlk2 | F196: PkBlk3 | G196: PkBlk4
B198: =B192 -> Existing : Tariff V - AGN North - Non Residential | C198: =INDEX(Prop2019DistTar!$F$27:$F$31,C$38) -> 1187017 | D198: =INDEX(Prop2019DistTar!$F$27:$F$31,D$38) -> 37831.8149 | E198: =INDEX(Prop2019DistTar!$F$27:$F$31,E$38) -> 184497.1598 | F198: =INDEX(Prop2019DistTar!$F$27:$F$31,F$38) -> 125529.1123 | G198: =INDEX(Prop2019DistTar!$F$27:$F$31,G$38) -> 473113.7223
B200: =B194 -> Proposed : Tariff V - AGN North - Non Residential | C200: =INDEX(Prop2019DistTar!$F$27:$F$31,C$38) -> 1187017 | D200: =INDEX(Prop2019DistTar!$F$27:$F$31,D$38) -> 37831.8149 | E200: =INDEX(Prop2019DistTar!$F$27:$F$31,E$38) -> 184497.1598 | F200: =INDEX(Prop2019DistTar!$F$27:$F$31,F$38) -> 125529.1123 | G200: =INDEX(Prop2019DistTar!$F$27:$F$31,G$38) -> 473113.7223
B202: Distribution revenue | C202: Fixed | D202: PkBlk1 | E202: PkBlk2 | F202: PkBlk3 | G202: PkBlk4
B204: =B198 -> Existing : Tariff V - AGN North - Non Residential | C204: =INDEX(Prop2019DistTar!$H$27:$H$31,C$39) -> 221022.5654 | D204: =INDEX(Prop2019DistTar!$H$27:$H$31,D$39) -> 262242.5745 | E204: =INDEX(Prop2019DistTar!$H$27:$H$31,E$39) -> 633286.5011 | F204: =INDEX(Prop2019DistTar!$H$27:$H$31,F$39) -> 321982.1731 | G204: =INDEX(Prop2019DistTar!$H$27:$H$31,G$39) -> 492085.5826
B206: =B200 -> Proposed : Tariff V - AGN North - Non Residential | C206: =INDEX(Prop2019DistTar!$G$27:$G$31,C$38) -> 225651.9317 | D206: =INDEX(Prop2019DistTar!$G$27:$G$31,D$38) -> 280416.9784 | E206: =INDEX(Prop2019DistTar!$G$27:$G$31,E$38) -> 646441.1486 | F206: =INDEX(Prop2019DistTar!$G$27:$G$31,F$38) -> 328672.8748 | G206: =INDEX(Prop2019DistTar!$G$27:$G$31,G$38) -> 502304.839
B208: Revenue | C208: Total
B209: =B204 -> Existing : Tariff V - AGN North - Non Residential | C209: =SUM(C204:G204) -> 1930619.397
B210: =B206 -> Proposed : Tariff V - AGN North - Non Residential | C210: =SUM(C206:G206) -> 1983487.773
B212: Average price movement | C212: =IF(C210=0,"",C210/C209) -> 1.027384152
B214: =IF(C212="","",IF(C212<=$C$13,"REBALANCING CONTROL COMPLIANT","REBALANCING CONTROL BREACHED")) -> REBALANCING CONTROL COMPLIANT
B218: =Prop2019DistTar!B38 -> Tariff V - Murray Valley - Non Residential | C218: 1 | D218: 2 | E218: 3 | F218: 4 | G218: 5
C219: 1 | D219: 2 | E219: 3 | F219: 4 | G219: 5
B220: Distribution tariff | C220: Fixed | D220: Blk1 | E220: Blk2 | F220: Blk3 | G220: Blk4
B222: ="Existing : "&Prop2019DistTar!C38 -> Existing : Tariff V - Murray Valley - Non Residential | C222: =INDEX(Prop2019DistTar!$E$40:$E$44,C$39) -> 0.237 | D222: =INDEX(Prop2019DistTar!$E$40:$E$44,D$39) -> 6.1979 | E222: =INDEX(Prop2019DistTar!$E$40:$E$44,E$39) -> 3.8119 | F222: =INDEX(Prop2019DistTar!$E$40:$E$44,F$39) -> 2.8504 | G222: =INDEX(Prop2019DistTar!$E$40:$E$44,G$39) -> 1.2955
B224: ="Proposed : "&B218 -> Proposed : Tariff V - Murray Valley - Non Residential | C224: =INDEX(Prop2019DistTar!$D$40:$D$44,C$38) -> 0.2419 | D224: =INDEX(Prop2019DistTar!$D$40:$D$44,D$38) -> 6.6274 | E224: =INDEX(Prop2019DistTar!$D$40:$D$44,E$38) -> 3.8911 | F224: =INDEX(Prop2019DistTar!$D$40:$D$44,F$38) -> 2.9096 | G224: =INDEX(Prop2019DistTar!$D$40:$D$44,G$38) -> 1.3224
B226: Distribution volumes (actual) | C226: Fixed | D226: PkBlk1 | E226: PkBlk2 | F226: PkBlk3 | G226: PkBlk4
B228: =B222 -> Existing : Tariff V - Murray Valley - Non Residential | C228: =INDEX(Prop2019DistTar!$F$40:$F$44,C$38) -> 125998 | D228: =INDEX(Prop2019DistTar!$F$40:$F$44,D$38) -> 4424.81024 | E228: =INDEX(Prop2019DistTar!$F$40:$F$44,E$38) -> 20965.2222 | F228: =INDEX(Prop2019DistTar!$F$40:$F$44,F$38) -> 13536.13817 | G228: =INDEX(Prop2019DistTar!$F$40:$F$44,G$38) -> 31825.49375
B230: =B224 -> Proposed : Tariff V - Murray Valley - Non Residential | C230: =INDEX(Prop2019DistTar!$F$40:$F$44,C$38) -> 125998 | D230: =INDEX(Prop2019DistTar!$F$40:$F$44,D$38) -> 4424.81024 | E230: =INDEX(Prop2019DistTar!$F$40:$F$44,E$38) -> 20965.2222 | F230: =INDEX(Prop2019DistTar!$F$40:$F$44,F$38) -> 13536.13817 | G230: =INDEX(Prop2019DistTar!$F$40:$F$44,G$38) -> 31825.49375
B232: Distribution revenue | C232: Fixed | D232: PkBlk1 | E232: PkBlk2 | F232: PkBlk3 | G232: PkBlk4
B234: =B228 -> Existing : Tariff V - Murray Valley - Non Residential | C234: =INDEX(Prop2019DistTar!$H$40:$H$44,C$39) -> 29861.526 | D234: =INDEX(Prop2019DistTar!$H$40:$H$44,D$39) -> 27424.53139 | E234: =INDEX(Prop2019DistTar!$H$40:$H$44,E$39) -> 79917.3305 | F234: =INDEX(Prop2019DistTar!$H$40:$H$44,F$39) -> 38583.40825 | G234: =INDEX(Prop2019DistTar!$H$40:$H$44,G$39) -> 41229.92716
B236: =B230 -> Proposed : Tariff V - Murray Valley - Non Residential | C236: =INDEX(Prop2019DistTar!$G$40:$G$44,C$38) -> 30478.9162 | D236: =INDEX(Prop2019DistTar!$G$40:$G$44,D$38) -> 29324.98739 | E236: =INDEX(Prop2019DistTar!$G$40:$G$44,E$38) -> 81577.77609 | F236: =INDEX(Prop2019DistTar!$G$40:$G$44,F$38) -> 39384.74763 | G236: =INDEX(Prop2019DistTar!$G$40:$G$44,G$38) -> 42086.03294
B238: Revenue | C238: Total
B239: =B234 -> Existing : Tariff V - Murray Valley - Non Residential | C239: =SUM(C234:G234) -> 217016.7233
B240: =B236 -> Proposed : Tariff V - Murray Valley - Non Residential | C240: =SUM(C236:G236) -> 222852.4603
B242: Average price movement | C242: =IF(C240=0,"",C240/C239) -> 1.026890725
B244: =IF(C242="","",IF(C242<=$C$13,"REBALANCING CONTROL COMPLIANT","REBALANCING CONTROL BREACHED")) -> REBALANCING CONTROL COMPLIANT
B248: =Prop2019DistTar!B51 -> Tariff V - Bairnsdale - Non Residential | C248: 1 | D248: 2 | E248: 3 | F248: 4 | G248: 5
C249: 1 | D249: 2 | E249: 3 | F249: 4 | G249: 5
B250: Distribution tariff | C250: Fixed | D250: Blk1 | E250: Blk2 | F250: Blk3 | G250: Blk4
B252: ="Existing : "&Prop2019DistTar!C51 -> Existing : Tariff V - Bairnsdale - Non Residential | C252: =INDEX(Prop2019DistTar!$E$53:$E$57,C$39) -> 0.3064 | D252: =INDEX(Prop2019DistTar!$E$53:$E$57,D$39) -> 12.7075 | E252: =INDEX(Prop2019DistTar!$E$53:$E$57,E$39) -> 6.4511 | F252: =INDEX(Prop2019DistTar!$E$53:$E$57,F$39) -> 4.8193 | G252: =INDEX(Prop2019DistTar!$E$53:$E$57,G$39) -> 1.9543
B254: ="Proposed : "&B248 -> Proposed : Tariff V - Bairnsdale - Non Residential | C254: =INDEX(Prop2019DistTar!$D$53:$D$57,C$38) -> 0.3128 | D254: =INDEX(Prop2019DistTar!$D$53:$D$57,D$38) -> 13.5881 | E254: =INDEX(Prop2019DistTar!$D$53:$D$57,E$38) -> 6.5851 | F254: =INDEX(Prop2019DistTar!$D$53:$D$57,F$38) -> 4.9194 | G254: =INDEX(Prop2019DistTar!$D$53:$D$57,G$38) -> 1.9949
B256: Distribution volumes (actual) | C256: Fixed | D256: PkBlk1 | E256: PkBlk2 | F256: PkBlk3 | G256: PkBlk4
B258: =B252 -> Existing : Tariff V - Bairnsdale - Non Residential | C258: =INDEX(Prop2019DistTar!$F$53:$F$57,C$38) -> 39321 | D258: =INDEX(Prop2019DistTar!$F$53:$F$57,D$38) -> 1614.237631 | E258: =INDEX(Prop2019DistTar!$F$53:$F$57,E$38) -> 12155.84931 | F258: =INDEX(Prop2019DistTar!$F$53:$F$57,F$38) -> 10095.52943 | G258: =INDEX(Prop2019DistTar!$F$53:$F$57,G$38) -> 45489.22024
B260: =B254 -> Proposed : Tariff V - Bairnsdale - Non Residential | C260: =INDEX(Prop2019DistTar!$F$53:$F$57,C$38) -> 39321 | D260: =INDEX(Prop2019DistTar!$F$53:$F$57,D$38) -> 1614.237631 | E260: =INDEX(Prop2019DistTar!$F$53:$F$57,E$38) -> 12155.84931 | F260: =INDEX(Prop2019DistTar!$F$53:$F$57,F$38) -> 10095.52943 | G260: =INDEX(Prop2019DistTar!$F$53:$F$57,G$38) -> 45489.22024
B262: Distribution revenue | C262: Fixed | D262: PkBlk1 | E262: PkBlk2 | F262: PkBlk3 | G262: PkBlk4
B264: =B258 -> Existing : Tariff V - Bairnsdale - Non Residential | C264: =INDEX(Prop2019DistTar!$H$53:$H$57,C$39) -> 12047.9544 | D264: =INDEX(Prop2019DistTar!$H$53:$H$57,D$39) -> 20512.92469 | E264: =INDEX(Prop2019DistTar!$H$53:$H$57,E$39) -> 78418.5995 | F264: =INDEX(Prop2019DistTar!$H$53:$H$57,F$39) -> 48653.38498 | G264: =INDEX(Prop2019DistTar!$H$53:$H$57,G$39) -> 88899.58312
B266: =B260 -> Proposed : Tariff V - Bairnsdale - Non Residential | C266: =INDEX(Prop2019DistTar!$G$53:$G$57,C$38) -> 12299.6088 | D266: =INDEX(Prop2019DistTar!$G$53:$G$57,D$38) -> 21934.42235 | E266: =INDEX(Prop2019DistTar!$G$53:$G$57,E$38) -> 80047.48331 | F266: =INDEX(Prop2019DistTar!$G$53:$G$57,F$38) -> 49663.94747 | G266: =INDEX(Prop2019DistTar!$G$53:$G$57,G$38) -> 90746.44546
B268: Revenue | C268: Total
B269: =B264 -> Existing : Tariff V - Bairnsdale - Non Residential | C269: =SUM(C264:G264) -> 248532.4467
B270: =B266 -> Proposed : Tariff V - Bairnsdale - Non Residential | C270: =SUM(C266:G266) -> 254691.9074
B272: Average price movement | C272: =IF(C270=0,"",C270/C269) -> 1.024783326
B274: =IF(C272="","",IF(C272<=$C$13,"REBALANCING CONTROL COMPLIANT","REBALANCING CONTROL BREACHED")) -> REBALANCING CONTROL COMPLIANT
B278: =Prop2019DistTar!B59 -> Tariff D - AGN Central
C279: 1 | D279: 2 | E279: 3
B280: Distribution tariff | C280: DemBlk1 | D280: DemBlk2 | E280: DemBlk2
B281: ="Existing: "&Prop2019DistTar!C59 -> Existing: Tariff D - AGN Central | C281: =INDEX(Prop2019DistTar!$E$60:$E$62,C279) -> 1381.8195 | D281: =INDEX(Prop2019DistTar!$E$60:$E$62,D279) -> 844.756 | E281: =INDEX(Prop2019DistTar!$E$60:$E$62,E279) -> 154.2698
B282: ="Proposed: "&B278 -> Proposed: Tariff D - AGN Central | C282: =INDEX(Prop2019DistTar!$D$60:$D$62,C279) -> 1429.5715 | D282: =INDEX(Prop2019DistTar!$D$60:$D$62,D279) -> 873.9485 | E282: =INDEX(Prop2019DistTar!$D$60:$D$62,E279) -> 159.601
B284: Distribution volumes (actual) | C284: DemBlk1 | D284: DemBlk2 | E284: DemBlk2
B285: =B281 -> Existing: Tariff D - AGN Central | C285: =INDEX(Prop2019DistTar!$F$60:$F$62,C$38) -> 1467.4217 | D285: =INDEX(Prop2019DistTar!$F$60:$F$62,D$38) -> 1341.3308 | E285: =INDEX(Prop2019DistTar!$F$60:$F$62,E$38) -> 1336.6182
B286: =B282 -> Proposed: Tariff D - AGN Central | C286: =INDEX(Prop2019DistTar!$F$60:$F$62,C$38) -> 1467.4217 | D286: =INDEX(Prop2019DistTar!$F$60:$F$62,D$38) -> 1341.3308 | E286: =INDEX(Prop2019DistTar!$F$60:$F$62,E$38) -> 1336.6182
B288: Distribution revenue | C288: DemBlk1 | D288: DemBlk2 | E288: DemBlk2
B289: =B285 -> Existing: Tariff D - AGN Central | C289: =INDEX(Prop2019DistTar!$H$60:$H$62,C279) -> 2027711.92 | D289: =INDEX(Prop2019DistTar!$H$60:$H$62,D279) -> 1133097.241 | E289: =INDEX(Prop2019DistTar!$H$60:$H$62,E279) -> 206199.8224
B290: =B286 -> Proposed: Tariff D - AGN Central | C290: =INDEX(Prop2019DistTar!$G$60:$G$62,C279) -> 2097784.241 | D290: =INDEX(Prop2019DistTar!$G$60:$G$62,D279) -> 1172254.041 | E290: =INDEX(Prop2019DistTar!$G$60:$G$62,E279) -> 213325.6013
B292: Revenue | C292: Total
B293: =B289 -> Existing: Tariff D - AGN Central | C293: =SUM(C289:E289) -> 3367008.983
B294: =B290 -> Proposed: Tariff D - AGN Central | C294: =SUM(C290:E290) -> 3483363.883
B296: Average price movement | C296: =IF(C294=0,"",C294/C293) -> 1.034557347
B298: =IF(C296="","",IF(C296<=$C$13,"REBALANCING CONTROL COMPLIANT","REBALANCING CONTROL BREACHED")) -> REBALANCING CONTROL COMPLIANT
B302: =Prop2019DistTar!B64 -> Tariff D - AGN North
C303: 1 | D303: 2 | E303: 3
B304: Distribution tariff | C304: DemBlk1 | D304: DemBlk2 | E304: DemBlk2
B305: ="Existing: "&Prop2019DistTar!C64 -> Existing: Tariff D - AGN North | C305: =INDEX(Prop2019DistTar!$E$65:$E$67,C303) -> 1381.8195 | D305: =INDEX(Prop2019DistTar!$E$65:$E$67,D303) -> 844.756 | E305: =INDEX(Prop2019DistTar!$E$65:$E$67,E303) -> 154.2698
B306: ="Proposed: "&B302 -> Proposed: Tariff D - AGN North | C306: =INDEX(Prop2019DistTar!$D$65:$D$67,C303) -> 1429.5715 | D306: =INDEX(Prop2019DistTar!$D$65:$D$67,D303) -> 873.9485 | E306: =INDEX(Prop2019DistTar!$D$65:$D$67,E303) -> 159.601
B308: Distribution volumes (actual) | C308: DemBlk1 | D308: DemBlk2 | E308: DemBlk2
B309: =B305 -> Existing: Tariff D - AGN North | C309: =INDEX(Prop2019DistTar!$F$65:$F$67,C$38) -> 437.0639 | D309: =INDEX(Prop2019DistTar!$F$65:$F$67,D$38) -> 625.7384 | E309: =INDEX(Prop2019DistTar!$F$65:$F$67,E$38) -> 505.4394
B310: =B306 -> Proposed: Tariff D - AGN North | C310: =INDEX(Prop2019DistTar!$F$65:$F$67,C$38) -> 437.0639 | D310: =INDEX(Prop2019DistTar!$F$65:$F$67,D$38) -> 625.7384 | E310: =INDEX(Prop2019DistTar!$F$65:$F$67,E$38) -> 505.4394
B312: Distribution revenue | C312: DemBlk1 | D312: DemBlk2 | E312: DemBlk2
B313: =B309 -> Existing: Tariff D - AGN North | C313: =INDEX(Prop2019DistTar!$H$65:$H$67,C303) -> 603943.4198 | D313: =INDEX(Prop2019DistTar!$H$65:$H$67,D303) -> 528596.2678 | E313: =INDEX(Prop2019DistTar!$H$65:$H$67,E303) -> 77974.03515
B314: =B310 -> Proposed: Tariff D - AGN North | C314: =INDEX(Prop2019DistTar!$G$65:$G$67,C303) -> 624814.0951 | D314: =INDEX(Prop2019DistTar!$G$65:$G$67,D303) -> 546863.1361 | E314: =INDEX(Prop2019DistTar!$G$65:$G$67,E303) -> 80668.63368
B316: Revenue | C316: Total
B317: =B313 -> Existing: Tariff D - AGN North | C317: =SUM(C313:E313) -> 1210513.723
B318: =B314 -> Proposed: Tariff D - AGN North | C318: =SUM(C314:E314) -> 1252345.865
B320: Average price movement | C320: =IF(C318=0,"",C318/C317) -> 1.034557346
B322: =IF(C320="","",IF(C320<=$C$13,"REBALANCING CONTROL COMPLIANT","REBALANCING CONTROL BREACHED")) -> REBALANCING CONTROL COMPLIANT
B326: =Prop2019DistTar!B69 -> Tariff D - Murray Valley
C327: 1 | D327: 2 | E327: 3
B328: Distribution tariff | C328: DemBlk1 | D328: DemBlk2 | E328: DemBlk2
B329: ="Existing: "&Prop2019DistTar!C69 -> Existing: Tariff D - Murray Valley | C329: =INDEX(Prop2019DistTar!$E$70:$E$72,C327) -> 1610.6766 | D329: =INDEX(Prop2019DistTar!$E$70:$E$72,D327) -> 993.8891 | E329: =INDEX(Prop2019DistTar!$E$70:$E$72,E327) -> 169.2768
B330: ="Proposed: "&B326 -> Proposed: Tariff D - Murray Valley | C330: =INDEX(Prop2019DistTar!$D$70:$D$72,C327) -> 1666.3373 | D330: =INDEX(Prop2019DistTar!$D$70:$D$72,D327) -> 1028.2353 | E330: =INDEX(Prop2019DistTar!$D$70:$D$72,E327) -> 175.1266
B332: Distribution volumes (actual) | C332: DemBlk1 | D332: DemBlk2 | E332: DemBlk2
B333: =B329 -> Existing: Tariff D - Murray Valley | C333: =INDEX(Prop2019DistTar!$F$70:$F$72,C$38) -> 64.9203 | D333: =INDEX(Prop2019DistTar!$F$70:$F$72,D$38) -> 131.6219 | E333: =INDEX(Prop2019DistTar!$F$70:$F$72,E$38) -> 126.3329
B334: =B330 -> Proposed: Tariff D - Murray Valley | C334: =INDEX(Prop2019DistTar!$F$70:$F$72,C$38) -> 64.9203 | D334: =INDEX(Prop2019DistTar!$F$70:$F$72,D$38) -> 131.6219 | E334: =INDEX(Prop2019DistTar!$F$70:$F$72,E$38) -> 126.3329
B336: Distribution revenue | C336: DemBlk1 | D336: DemBlk2 | E336: DemBlk2
B337: =B333 -> Existing: Tariff D - Murray Valley | C337: =INDEX(Prop2019DistTar!$H$70:$H$72,C327) -> 104565.6081 | D337: =INDEX(Prop2019DistTar!$H$70:$H$72,D327) -> 130817.5717 | E337: =INDEX(Prop2019DistTar!$H$70:$H$72,E327) -> 21385.22905
B338: =B334 -> Proposed: Tariff D - Murray Valley | C338: =INDEX(Prop2019DistTar!$G$70:$G$72,C327) -> 108179.1174 | D338: =INDEX(Prop2019DistTar!$G$70:$G$72,D327) -> 135338.2838 | E338: =INDEX(Prop2019DistTar!$G$70:$G$72,E327) -> 22124.25125
B340: Revenue | C340: Total
B341: =B337 -> Existing: Tariff D - Murray Valley | C341: =SUM(C337:E337) -> 256768.4089
B342: =B338 -> Proposed: Tariff D - Murray Valley | C342: =SUM(C338:E338) -> 265641.6525
... 66 more rows

Sheet ARS
A1: ="Tariff Approval - "&'Model update'!B3 -> Tariff Approval - Aust. Gas Networks (Vic & Albury)
A3: Ancillary Reference Services (Exc GST)
B5: ='Model update'!$B$8 -> 2018 | C5: ='Model update'!$B$5 -> 2019
A6: Meter and Gas Installation Test | B6: 214 | C6: =ROUND(B6*(1+'Model update'!$B$30),0) -> 218
A7: Disconnection | B7: 71 | C7: =ROUND(B7*(1+'Model update'!$B$30),0) -> 72
A8: Reconnection | B8: 82 | C8: =ROUND(B8*(1+'Model update'!$B$30),0) -> 84
A9: Meter Removal | B9: 100 | C9: =ROUND(B9*(1+'Model update'!$B$30),0) -> 102
A10: Meter Reinstallation | B10: 100 | C10: =ROUND(B10*(1+'Model update'!$B$30),0) -> 102
A11: Special Meter Read - Metropolitan | B11: 9 | C11: =ROUND(B11*(1+'Model update'!$B$30),1) -> 9.2
A12: Special Meter Read - Non Metropolitan | B12: 12.3 | C12: =ROUND(B12*(1+'Model update'!$B$30),1) -> 12.6
A14: Note: 2017 formula is as per AA2013-17, Section 4.4.2, p9 : ART = ARTt-1 * (1+CPI)
